fUST/lending_fUST_20250723
["ID","MTS","AMOUNT","RATE_DAILY","PERIOD"]
[374237201,1753252267131,-2390.51,0.00022463,2]
[374237203,1753252267140,-460.0,0.00022463,2]
[374237205,1753252267151,-572.37,0.00022463,2]
[374237207,1753252267161,-463.59684902,0.00022463,2]
[374237209,1753252267170,-1866.65,0.00022463,2]
[374237211,1753252267180,-2454.77,0.00022463,2]
[374237213,1753252267189,-1330.35,0.00022463,2]
[374237215,1753252267198,-460.0,0.00022463,2]
[374237217,1753252267207,-500.0,0.00022465,2]
[374237219,1753252267216,-199.04954172,0.00022465,2]
[374237221,1753252267226,-403.79307641,0.00022465,2]
[374237223,1753252267237,-151.0,0.00022465,2]
[374237225,1753252267247,-151.0,0.00022465,2]
[374237227,1753252267256,-500.0,0.00022465,2]
[374237229,1753252267265,-351.92601288,0.00022465,2]
[374237231,1753252267275,-151.366573,0.00022465,7]
[374237233,1753252267284,-151.420775,0.00022465,7]
[374237235,1753252267293,-151.0,0.00022465,7]
[374237237,1753252267304,-151.0,0.00022465,7]
[374237239,1753252267315,-151.0,0.00022465,7]
[374237241,1753252267325,-151.0,0.00022465,7]
[374237243,1753252267338,-151.256194,0.00022465,7]
[374237245,1753252267348,-323.326907,0.00022465,7]
[374237247,1753252267357,-323.326907,0.00022465,7]
[374237248,1753252267366,-151.0,0.00022465,7]
[374237251,1753252267377,-151.0,0.00022465,7]
[374237252,1753252267387,-2002.63,0.00022465,2]
[374237254,1753252267397,-1498.23,0.00022465,2]
[374237256,1753252267406,-2729.19,0.00022465,2]
[374237258,1753252267415,-151.0,0.00022469,7]
[374237260,1753252267424,-151.0,0.00022469,7]
[374237262,1753252267434,-190.595905,0.00022473,7]
[374237264,1753252267443,-190.595905,0.00022473,7]
[374237266,1753252267452,-513.33,0.00022482,7]
[374237268,1753252267461,-25391.80113581,0.0002249,7]
[374237270,1753252267470,-151.0,0.0002249,7]
[374237272,1753252267479,-151.0,0.0002249,7]
[374237274,1753252267488,-287.4,0.00022511,2]
[374237276,1753252267497,-460.0,0.00022511,2]
[374237278,1753252267506,-460.0,0.00022511,2]
[374237280,1753252267515,-460.0,0.00022511,2]
[374237282,1753252267525,-443.09,0.00022511,2]
[374237284,1753252267534,-572.13,0.00022511,2]
[374237286,1753252267543,-709.29,0.00022511,2]
[374237288,1753252267553,-460.0,0.00022511,2]
[374237290,1753252267562,-552.62,0.00022511,2]
[374237292,1753252267571,-2826.29,0.00022511,2]
[374237294,1753252267582,-460.0,0.00022511,2]
[374237296,1753252267593,-349.14,0.00022511,2]
[374237298,1753252267603,-1664.43,0.00022511,2]
[374237300,1753252267612,-460.0,0.00022511,2]
[374237302,1753252267622,-460.0,0.00022511,2]
[374237304,1753252267631,-519.22,0.00022511,2]
[374237306,1753252267641,-460.0,0.00022511,2]
[374237308,1753252267650,-460.0,0.00022511,2]
[374237310,1753252267660,-460.0,0.00022511,2]
[374237312,1753252267669,-4784.39,0.00022511,2]
[374237314,1753252267680,-930.89,0.00022511,2]
[374237316,1753252267690,-460.0,0.00022511,2]
[374237318,1753252267700,-460.0,0.00022511,2]
[374237320,1753252267709,-151.0,0.00022513,7]
[374237322,1753252267719,-151.0,0.00022513,7]
[374237324,1753252267729,-215.195063,0.00022513,7]
[374237326,1753252267738,-215.195063,0.00022513,7]
[374237328,1753252267747,-151.0,0.00022513,7]
[374237330,1753252267756,-460.0,0.00022513,2]
[374237332,1753252267766,-1710.83,0.00022513,2]
[374237334,1753252267775,-533.7,0.00022513,2]
[374237336,1753252267787,-460.0,0.00022513,2]
[374237338,1753252267796,-460.0,0.00022513,2]
[374237340,1753252267806,-483.51,0.00022513,2]
[374237342,1753252267815,-2016.38,0.00022513,2]
[374237344,1753252267825,-460.0,0.00022513,2]
[374237346,1753252267834,-1694.46,0.00022513,2]
[374237348,1753252267844,-737.3,0.00022513,2]
[374237350,1753252267853,-460.0,0.00022531,2]
[374237352,1753252267863,-513.33,0.00022582,3]
[374237354,1753252267872,-500.0,0.00022583,2]
[374237356,1753252267882,-3227.04131578,0.0002259,7]
[374237358,1753252267891,-151.0,0.000226,10]
[374237360,1753252267901,-500.0,0.00022607,2]
[374237362,1753252267910,-437.8987281,0.00022616,2]
[374237364,1753252267919,-243.0,0.00022624,2]
[374237366,1753252267928,-243.0,0.00022634,2]
[374237368,1753252267938,-560.0,0.00022658,2]
[374237370,1753252267947,-600.0,0.00022666,2]
[374237372,1753252267960,-155.554218,0.00022671,2]
[374237374,1753252267970,-155.554218,0.00022671,2]
[374237376,1753252267979,-513.33,0.00022682,6]
[374237378,1753252267990,-243.0,0.00022732,2]
[374237380,1753252268000,-2682.33,0.00022737,2]
[374237382,1753252268009,-921.24,0.00022737,2]
[374237384,1753252268018,-1595.47,0.00022737,2]
[374237386,1753252268029,-2390.51,0.00022737,2]
[374237387,1753252268038,-460.0,0.00022737,2]
[374237389,1753252268047,-572.37,0.00022737,2]
[374237391,1753252268056,-1866.65,0.00022737,2]
[374237393,1753252268066,-2454.77,0.00022737,2]
[374237395,1753252268075,-1330.35,0.00022737,2]
[374237397,1753252268085,-460.0,0.00022737,2]
[374237399,1753252268094,-500.0,0.00022739,2]
[374237401,1753252268104,-151.21472439,0.00022739,2]
[374237403,1753252268114,-189.49059097,0.00022739,2]
[374237405,1753252268124,-500.0,0.00022739,2]
[374237407,1753252268134,-152.817984,0.00022739,7]
[374237409,1753252268143,-151.0,0.00022739,7]
[374237411,1753252268153,-151.0,0.00022739,7]
[374237413,1753252268162,-151.0,0.00022739,7]
[374237415,1753252268171,-151.0,0.00022739,7]
[374237417,1753252268180,-151.0,0.00022739,7]
[374237419,1753252268191,-2002.63,0.00022739,2]
[374237421,1753252268200,-2729.19,0.00022739,2]
[374237423,1753252268210,-155.14035221,0.00022758,3]
[374237425,1753252268220,-513.33,0.00022782,6]
[374237427,1753252268230,-460.0,0.00022785,2]
[374237429,1753252268240,-460.0,0.00022785,2]
[374237431,1753252268250,-460.0,0.00022785,2]
[374237433,1753252268260,-572.13,0.00022785,2]
[374237435,1753252268270,-709.29,0.00022785,2]
[374237437,1753252268280,-460.0,0.00022785,2]
[374237439,1753252268291,-552.62,0.00022785,2]
[374237441,1753252268301,-2826.29,0.00022785,2]
[374237443,1753252268311,-460.0,0.00022785,2]
[374237445,1753252268320,-1664.43,0.00022785,2]
[374237447,1753252268330,-460.0,0.00022785,2]
[374237449,1753252268340,-460.0,0.00022785,2]
[374237451,1753252268349,-519.22,0.00022785,2]
[374237452,1753252268358,-460.0,0.00022785,2]
[374237454,1753252268368,-460.0,0.00022785,2]
[374237456,1753252268378,-460.0,0.00022785,2]
[374237458,1753252268387,-4784.39,0.00022785,2]
[374237460,1753252268397,-930.89,0.00022785,2]
[374237462,1753252268406,-460.0,0.00022785,2]
[374237464,1753252268415,-460.0,0.00022785,2]
[374237466,1753252268425,-323.326907,0.00022787,7]
[374237468,1753252268434,-323.326907,0.00022787,7]
[374237470,1753252268443,-460.0,0.00022787,2]
[374237472,1753252268453,-1710.83,0.00022787,2]
[374237474,1753252268462,-533.7,0.00022787,2]
[374237476,1753252268472,-460.0,0.00022787,2]
[374237478,1753252268481,-460.0,0.00022787,2]
[374237480,1753252268491,-224.272534,0.00022787,7]
[374237482,1753252268500,-483.51,0.00022787,2]
[374237484,1753252268509,-2016.38,0.00022787,2]
[374237486,1753252268518,-460.0,0.00022787,2]
[374237488,1753252268527,-1694.46,0.00022787,2]
[374237490,1753252268537,-737.3,0.00022787,2]
[374237491,1753252268547,-151.0,0.00022796,7]
[374237493,1753252268557,-3227.04131578,0.00022797,7]
[374237495,1753252268566,-190.595905,0.00022805,7]
[374237497,1753252268575,-190.595905,0.00022805,7]
[374237499,1753252268584,-555.0,0.0002284,2]
[374237501,1753252268594,-223.0315306,0.00022872,2]
[374237503,1753252268604,-513.33,0.00022882,6]
[374237505,1753252268613,-151.0,0.000229,7]
[374237507,1753252268623,-1500.0,0.00022968,2]
[374237509,1753252268632,-1270.64813713,0.00022968,2]
[374237511,1753252268642,-1500.0,0.00022968,2]
[374237513,1753252268652,-1500.0,0.00022968,2]
[374237515,1753252268661,-243.0,0.00022974,2]
[374237517,1753252268672,-437.8987281,0.00022974,2]
[374237519,1753252268682,-513.33,0.00022982,7]
[374237521,1753252268691,-160.0,0.00022988,3]
[374237523,1753252268700,-151.0,0.0002299,7]
[374237525,1753252268710,-151.0,0.0002299,7]
[374237527,1753252268720,-215.195063,0.0002299,7]
[374237528,1753252268729,-215.195063,0.0002299,7]
[374237530,1753252268738,-151.0,0.0002299,7]
[374237532,1753252268748,-151.0,0.0002299,7]
[374237534,1753252268757,-151.0,0.0002299,7]
[374237536,1753252268767,-642.0,0.00023,2]
[374237538,1753252268777,-526.15909479,0.00023,3]
[374237540,1753252268786,-3227.04131578,0.00023003,8]
[374237542,1753252268795,-2682.33,0.00023011,2]
[374237544,1753252268805,-921.24,0.00023011,2]
[374237546,1753252268814,-1595.47,0.00023011,2]
[374237548,1753252268824,-2390.51,0.00023011,2]
[374237550,1753252268834,-460.0,0.00023011,2]
[374237552,1753252268843,-572.37,0.00023011,2]
[374237554,1753252268853,-1866.65,0.00023011,2]
[374237556,1753252268863,-2454.77,0.00023011,2]
[374237558,1753252268873,-1330.35,0.00023011,2]
[374237560,1753252268883,-460.0,0.00023011,2]
[374237562,1753252268892,-500.0,0.00023013,2]
[374237564,1753252268902,-500.0,0.00023013,2]
[374237566,1753252268912,-2002.63,0.00023013,2]
[374237568,1753252268921,-2729.19,0.00023013,2]
[374237570,1753252268931,-324.45059861,0.00023036,2]
[374237572,1753252268940,-460.0,0.00023059,2]
[374237574,1753252268951,-460.0,0.00023059,2]
[374237576,1753252268961,-460.0,0.00023059,2]
[374237578,1753252268971,-572.13,0.00023059,2]
[374237580,1753252268980,-709.29,0.00023059,2]
[374237582,1753252268990,-577.1,0.00023059,2]
[374237584,1753252269001,-552.62,0.00023059,2]
[374237586,1753252269011,-2826.29,0.00023059,2]
[374237588,1753252269022,-460.0,0.00023059,2]
[374237597,1753252269104,-1664.43,0.00023059,2]
[374237599,1753252269114,-460.0,0.00023059,2]
[374237601,1753252269124,-460.0,0.00023059,2]
[374237603,1753252269134,-519.22,0.00023059,2]
[374237605,1753252269143,-460.0,0.00023059,2]
[374237607,1753252269153,-460.0,0.00023059,2]
[374237609,1753252269162,-460.0,0.00023059,2]
[374237611,1753252269172,-4784.39,0.00023059,2]
[374237613,1753252269182,-930.89,0.00023059,2]
[374237615,1753252269192,-460.0,0.00023059,2]
[374237617,1753252269201,-460.0,0.00023059,2]
[374237619,1753252269210,-460.0,0.00023061,2]
[374237621,1753252269222,-1710.83,0.00023061,2]
[374237622,1753252269232,-533.7,0.00023061,2]
[374237624,1753252269241,-421.24,0.00023061,2]
[374237626,1753252269250,-460.0,0.00023061,2]
[374237628,1753252269260,-483.51,0.00023061,2]
[374237630,1753252269269,-2016.38,0.00023061,2]
[374237632,1753252269279,-460.0,0.00023061,2]
[374237634,1753252269288,-1694.46,0.00023061,2]
[374237636,1753252269297,-737.3,0.00023061,2]
[374237638,1753252269306,-513.33,0.00023082,2]
[374237640,1753252269316,-151.0,0.00023085,7]
[374237642,1753252269325,-153.55704,0.00023085,7]
[374237644,1753252269334,-151.0,0.00023085,7]
[374237646,1753252269343,-12293.46,0.000231,2]
[374237648,1753252269352,-8125.27,0.000231,7]
[374237650,1753252269361,-195.283098,0.000231,7]
[374237652,1753252269372,-323.326907,0.000231,7]
[374237654,1753252269381,-323.326907,0.000231,7]
[374237656,1753252269390,-190.595905,0.000231,7]
[374237657,1753252269400,-190.595908,0.000231,7]
[374237658,1753252269409,-1067.603263,0.00023155,2]
[374237659,1753252269417,-1000.0,0.00023179,2]
[374237660,1753252269427,-513.33,0.00023182,3]
[374237661,1753252269437,-375.5,0.000232,7]
[374237662,1753252269447,-151.0,0.000232,10]
[374237663,1753252269456,-660.0,0.00023206,2]
[374237664,1753252269465,-1665.70819042,0.0002321,8]
[374237689,1753252269695,-1561.33312536,0.0002321,8]
[374237691,1753252269705,-168.0,0.00023251,2]
[374237693,1753252269714,-513.33,0.00023282,2]
[374237695,1753252269723,-2682.33,0.00023285,2]
[374237697,1753252269733,-921.24,0.00023285,2]
[374237699,1753252269742,-1595.47,0.00023285,2]
[374237701,1753252269752,-2390.51,0.00023285,2]
[374237703,1753252269761,-460.0,0.00023285,2]
[374237705,1753252269771,-572.37,0.00023285,2]
[374237708,1753252269782,-1866.65,0.00023285,2]
[374237710,1753252269791,-2454.77,0.00023285,2]
[374237712,1753252269800,-1330.35,0.00023285,2]
[374237714,1753252269810,-460.0,0.00023285,2]
[374237716,1753252269820,-500.0,0.00023287,2]
[374237718,1753252269830,-500.0,0.00023287,2]
[374237720,1753252269839,-151.0,0.00023287,7]
[374237722,1753252269849,-151.0,0.00023287,7]
[374237724,1753252269859,-2002.63,0.00023287,2]
[374237726,1753252269870,-2729.19,0.00023287,2]
[374237727,1753252269879,-814.02,0.000233,7]
[374237730,1753252269889,-437.8987281,0.00023332,2]
[374237732,1753252269898,-460.0,0.00023333,2]
[374237734,1753252269909,-460.0,0.00023333,2]
[374237736,1753252269919,-460.0,0.00023333,2]
[374237737,1753252269929,-572.13,0.00023333,2]
[374237739,1753252269938,-709.29,0.00023333,2]
[374237741,1753252269948,-552.62,0.00023333,2]
[374237743,1753252269961,-2826.29,0.00023333,2]
[374237745,1753252269970,-460.0,0.00023333,2]
[374237747,1753252269980,-1664.43,0.00023333,2]
[374237749,1753252269989,-460.0,0.00023333,2]
[374237751,1753252269998,-460.23550915,0.00023333,2]
[374237753,1753252270008,-519.22,0.00023333,2]
[374237755,1753252270018,-460.0,0.00023333,2]
[374237757,1753252270027,-460.0,0.00023333,2]
[374237759,1753252270037,-460.0,0.00023333,2]
[374237762,1753252270047,-4784.39,0.00023333,2]
[374237764,1753252270057,-930.89,0.00023333,2]
[374237765,1753252270067,-460.0,0.00023333,2]
[374237767,1753252270077,-460.0,0.00023333,2]
[374237769,1753252270086,-151.0,0.00023335,7]
[374237771,1753252270095,-151.0,0.00023335,7]
[374237773,1753252270105,-460.0,0.00023335,2]
[374237775,1753252270114,-1710.83,0.00023335,2]
[374237777,1753252270124,-533.7,0.00023335,2]
[374237779,1753252270133,-460.0,0.00023335,2]
[374237781,1753252270143,-483.51,0.00023335,2]
[374237783,1753252270152,-2016.38,0.00023335,2]
[374237785,1753252270162,-460.0,0.00023335,2]
[374237787,1753252270171,-1694.46,0.00023335,2]
[374237789,1753252270181,-737.3,0.00023335,2]
[374237791,1753252270190,-215.195063,0.00023353,7]
[374237793,1753252270199,-215.195063,0.00023353,7]
[374237795,1753252270208,-151.0,0.00023353,7]
[374237797,1753252270217,-2157.0,0.00023373,2]
[374237799,1753252270226,-971.991,0.00023373,2]
[374237801,1753252270236,-407.0,0.00023373,2]
[374237803,1753252270246,-649.677,0.00023373,2]
[374237805,1753252270255,-513.33,0.00023382,5]
[374237807,1753252270265,-3227.04131578,0.00023417,9]
[374237809,1753252270274,-160.0,0.00023418,4]
[374237811,1753252270284,-168.0,0.00023434,2]
[374237813,1753252270293,-168.0,0.00023435,2]
[374237815,1753252270302,-155.554218,0.00023469,2]
[374237817,1753252270312,-155.554218,0.00023469,2]
[374237819,1753252270322,-389.38713249,0.00023479,2]
[374237821,1753252270331,-513.33,0.00023482,5]
[374237823,1753252270341,-168.0,0.00023487,2]
[374237825,1753252270350,-168.0,0.00023488,2]
[374237827,1753252270359,-151.0,0.000235,9]
[374237829,1753252270369,-168.0,0.00023505,2]
[374237831,1753252270378,-168.0,0.00023511,2]
[374237833,1753252270387,-524.23450938,0.00023516,2]
[374237835,1753252270397,-1008.49459655,0.00023516,2]
[374237837,1753252270407,-2000.0,0.00023516,2]
[374237839,1753252270416,-2682.33,0.00023559,2]
[374237841,1753252270425,-921.24,0.00023559,2]
[374237843,1753252270435,-1595.47,0.00023559,2]
[374237845,1753252270445,-2390.51,0.00023559,2]
[374237847,1753252270455,-572.37,0.00023559,2]
[374237849,1753252270464,-1866.65,0.00023559,2]
[374237851,1753252270474,-2454.77,0.00023559,2]
[374237853,1753252270483,-1330.35,0.00023559,2]
[374237855,1753252270492,-460.0,0.00023559,2]
[374237857,1753252270502,-500.0,0.00023561,2]
[374237859,1753252270512,-500.0,0.00023561,2]
[374237861,1753252270521,-2002.63,0.00023561,2]
[374237863,1753252270530,-2729.19,0.00023561,2]
[374237865,1753252270540,-513.33,0.00023582,4]
[374237867,1753252270549,-389.38713249,0.00023589,2]
[374237869,1753252270559,-358.25429499,0.00023607,2]
[374237871,1753252270568,-460.0,0.00023607,2]
[374237873,1753252270577,-460.0,0.00023607,2]
[374237875,1753252270587,-572.13,0.00023607,2]
[374237877,1753252270596,-709.29,0.00023607,2]
[374237879,1753252270605,-552.62,0.00023607,2]
[374237881,1753252270615,-2826.29,0.00023607,2]
[374237883,1753252270628,-460.0,0.00023607,2]
[374237885,1753252270638,-1664.43,0.00023607,2]
[374237887,1753252270647,-460.0,0.00023607,2]
[374237889,1753252270656,-519.22,0.00023607,2]
[374237891,1753252270665,-460.0,0.00023607,2]
[374237893,1753252270674,-460.0,0.00023607,2]
[374237894,1753252270684,-460.0,0.00023607,2]
[374237896,1753252270694,-4784.39,0.00023607,2]
[374237899,1753252270704,-930.89,0.00023607,2]
[374237900,1753252270713,-460.0,0.00023607,2]
[374237902,1753252270723,-460.0,0.00023607,2]
[374237904,1753252270733,-460.0,0.00023609,2]
[374237906,1753252270742,-1710.83,0.00023609,2]
[374237908,1753252270751,-533.7,0.00023609,2]
[374237910,1753252270761,-460.0,0.00023609,2]
[374237912,1753252270771,-483.51,0.00023609,2]
[374237915,1753252270780,-2016.38,0.00023609,2]
[374237916,1753252270789,-460.0,0.00023609,2]
[374237919,1753252270799,-1694.46,0.00023609,2]
[374237920,1753252270808,-737.3,0.00023609,2]
[374237922,1753252270817,-168.0,0.00023611,2]
[374237924,1753252270826,-3227.04131578,0.00023624,9]
[374237926,1753252270835,-151.0,0.00023627,7]
[374237928,1753252270844,-154.651297,0.00023627,7]
[374237930,1753252270853,-150.375,0.00023635,2]
[374237932,1753252270862,-224.39,0.00023635,2]
[374237934,1753252270873,-323.326907,0.00023659,7]
[374237936,1753252270882,-323.326902,0.00023659,7]
[374237938,1753252270891,-1000.0,0.00023679,2]
[374237940,1753252270900,-168.0,0.0002368,2]
[374237942,1753252270910,-513.33,0.00023682,6]
[374237944,1753252270919,-168.0,0.00023685,2]
[374237946,1753252270928,-437.8987281,0.00023689,2]
[374237948,1753252270938,-389.38713249,0.00023699,2]
[374237950,1753252270947,-760.0,0.00023754,2]
[374237952,1753252270961,-513.33,0.00023782,6]
[374237954,1753252270970,-389.38713249,0.00023808,2]
[374237956,1753252270980,-599.1041439,0.00023809,2]
[374237958,1753252270989,-300.25799999,0.00023809,2]
[374237960,1753252271000,-300.258,0.00023815,2]
[374237962,1753252271010,-600.516,0.00023815,2]
[374237964,1753252271019,-600.516,0.00023815,2]
[374237966,1753252271030,-3227.04131578,0.00023831,10]
[374237968,1753252271039,-71.15351859,0.00023833,2]
[374237981,1753252271150,-460.0,0.00019773,2]
[374237982,1753252271160,-460.0,0.00019773,2]
[374237985,1753252271169,-460.93188242,0.00019773,2]
[374237987,1753252271179,-429.674968,0.00020658,2]
[374237988,1753252271188,-2611.17648141,0.00023833,2]
[374237991,1753252271198,-921.24,0.00023833,2]
[374237993,1753252271207,-1595.47,0.00023833,2]
[374237995,1753252271217,-2390.51,0.00023833,2]
[374237997,1753252271227,-572.37,0.00023833,2]
[374237998,1753252271237,-1866.65,0.00023833,2]
[374238001,1753252271247,-2454.77,0.00023833,2]
[374238002,1753252271256,-1330.35,0.00023833,2]
[374238004,1753252271266,-460.0,0.00023833,2]
[374238006,1753252271275,-500.0,0.00023835,2]
[374238009,1753252271285,-500.0,0.00023835,2]
[374238011,1753252271294,-2002.63,0.00023835,2]
[374238012,1753252271303,-2729.19,0.00023835,2]
[374238014,1753252271313,-168.0,0.00023841,2]
[374238016,1753252271322,-160.0,0.00023848,5]
[374238018,1753252271331,-337.68,0.00023881,2]
[374238020,1753252271340,-460.0,0.00023881,2]
[374238022,1753252271349,-709.29,0.00023881,2]
[374238024,1753252271359,-552.62,0.00023881,2]
[374238026,1753252271369,-2826.29,0.00023881,2]
[374238028,1753252271379,-460.0,0.00023881,2]
[374238030,1753252271387,-1664.43,0.00023881,2]
[374238032,1753252271396,-460.0,0.00023881,2]
[374238034,1753252271406,-519.22,0.00023881,2]
[374238036,1753252271415,-460.0,0.00023881,2]
[374238038,1753252271424,-460.0,0.00023881,2]
[374238040,1753252271433,-460.0,0.00023881,2]
[374238042,1753252271442,-4784.39,0.00023881,2]
[374238044,1753252271451,-930.89,0.00023881,2]
[374238046,1753252271461,-460.0,0.00023881,2]
[374238048,1753252271470,-460.0,0.00023881,2]
[374238050,1753252271479,-513.41333819,0.00023882,7]
[374238052,1753252271490,-265.11,0.00023883,2]
[374238054,1753252271499,-1710.83,0.00023883,2]
[374238056,1753252271508,-533.7,0.00023883,2]
[374238058,1753252271518,-460.0,0.00023883,2]
[374238060,1753252271527,-483.51,0.00023883,2]
[374238062,1753252271537,-2016.38,0.00023883,2]
[374238064,1753252271546,-460.0,0.00023883,2]
[374238066,1753252271556,-1694.46,0.00023883,2]
[374238068,1753252271565,-480.88578522,0.00023883,2]
[374239831,1753252442279,286.215307,0.00013699,2]
[374239832,1753252638347,150.0,0.00016711,2]
[374239833,1753252901212,-500.0,0.00017072,2]
[374239834,1753252901234,-500.0,0.00017971,2]
[374239835,1753252901256,-1200.0,0.00018151,2]
[374239836,1753252901278,-24900.0,0.00018152,2]
[374239837,1753252901300,-500.0,0.00018916,2]
[374239838,1753252901321,-300.0,0.00019176,2]
[374239839,1753252901343,-236.0,0.00019176,2]
[374239840,1753252901367,-682.54134488,0.00019177,2]
[374239841,1753252901395,-500.0,0.00019177,2]
[374239842,1753252901417,-500.0,0.00019177,2]
[374239843,1753252901439,-602.5,0.00019177,2]
[374239844,1753252901465,-500.0,0.00019177,2]
[374239845,1753252901493,-500.0,0.00019177,2]
[374239846,1753252901515,-442.1770383,0.00019177,2]
[374239847,1753252901537,-196.28380395,0.00019177,2]
[374239848,1753252901560,-500.0,0.00019177,2]
[374239849,1753252901584,-500.0,0.00019177,2]
[374239850,1753252901609,-508.2,0.00019177,2]
[374239851,1753252901631,-500.0,0.00019177,2]
[374239852,1753252901654,-500.0,0.00019177,2]
[374239853,1753252901676,-500.0,0.00019177,2]
[374239854,1753252901700,-500.0,0.00019177,2]
[374239855,1753252901724,-500.0,0.00019177,2]
[374239856,1753252901746,-463.56389705,0.00019177,2]
[374239857,1753252901769,-500.0,0.00019177,2]
[374239858,1753252901790,-500.0,0.00019177,2]
[374239859,1753252901947,-500.0,0.00019177,2]
[374239860,1753252901972,-500.0,0.00019177,2]
[374239861,1753252901996,-500.0,0.00019177,2]
[374239862,1753252902023,-500.0,0.00019177,2]
[374239863,1753252902044,-460.0,0.00019178,2]
[374239864,1753252902071,-460.0,0.00019178,2]
[374239865,1753252902094,-460.0,0.00019178,2]
[374239866,1753252902116,-460.0,0.00019178,2]
[374239867,1753252902137,-331.95745199,0.00019178,2]
[374239868,1753252902161,-460.0,0.00019178,2]
[374239869,1753252902182,-460.0,0.00019178,2]
[374239870,1753252902205,-460.0,0.00019178,2]
[374239871,1753252902226,-460.0,0.00019178,2]
[374239872,1753252902250,-460.0,0.00019178,2]
[374239873,1753252902276,-460.0,0.00019178,2]
[374239874,1753252902299,-460.0,0.00019178,2]
[374239875,1753252902325,-460.0,0.00019178,2]
[374239876,1753252902346,-464.14128638,0.00019178,2]
[374239877,1753252902368,-460.0,0.00019178,2]
[374239878,1753252902389,-460.0,0.00019178,2]
[374239879,1753252902413,-460.0,0.00019178,2]
[374239880,1753252902434,-460.0,0.00019178,2]
[374239881,1753252902455,-460.0,0.00019178,2]
[374239882,1753252902476,-460.0,0.00019178,2]
[374239883,1753252902499,-460.0,0.00019178,2]
[374239884,1753252902520,-460.0,0.00019178,2]
[374239885,1753252902542,-460.0,0.00019178,2]
[374239886,1753252902564,-460.0,0.00019178,2]
[374239887,1753252902585,-463.34980685,0.00019178,2]
[374239888,1753252902606,-460.0,0.00019178,2]
[374239889,1753252902629,-460.0,0.00019178,2]
[374239890,1753252902650,-460.0,0.00019178,2]
[374239891,1753252902671,-460.0,0.00019178,2]
[374239892,1753252902692,-461.11416517,0.00019178,2]
[374239893,1753252902714,-466.79710821,0.00019178,2]
[374239894,1753252902735,-460.0,0.00019178,2]
[374239895,1753252902755,-459.30174782,0.00019178,2]
[374239896,1753252902776,-460.0,0.00019178,2]
[374239897,1753252902798,-460.0,0.00019178,2]
[374239898,1753252902819,-461.96107234,0.00019178,2]
[374239899,1753252902840,-460.0,0.00019178,2]
[374239900,1753252902861,-591.48153014,0.00019178,2]
[374239901,1753252902881,-460.0,0.00019178,2]
[374239902,1753252902901,-604.92468495,0.00019178,2]
[374239903,1753252902923,-460.0,0.00019178,2]
[374239904,1753252902944,-460.0,0.00019178,2]
[374239905,1753252902968,-460.0,0.00019178,2]
[374239906,1753252902988,-460.0,0.00019178,2]
[374239907,1753252903009,-460.0,0.00019178,2]
[374239908,1753252903030,-460.0,0.00019178,2]